Cogmind - Beta 17 @@@ ROGUE MODE // 2026.08.16 @ 11:16:27 Player: MiniMilk Result: Self-destructed Performance ------------- Evolutions (1) 500 Regions Visited (4) 800 Robots Destroyed (11) 55 Value Destroyed (230) 230 Prototype IDs (0) 0 Alien Tech Used (0) 0 Bonus (0) 0 TOTAL SCORE: 1585 Bonus ------- None Cogmind --------- Core Integrity 394/400 Matter 269/300 Energy 98/100 System Corruption 0% Temperature Cool (4) Movement Flying (37) Location -9/Storage Parts ------- > --- POWER (1) -------- (None) > --- PROPULSION (3) --- Flight Unit Flight Unit > --- UTILITY (3) ------ (None) > --- WEAPON (2) ------- Light EM Pulse Cannon > --- INVENTORY (5) ---- Small Storage Unit Terrain Scan Processor Peak State ------------ > --- POWER ------------ Light Nuclear Core > --- PROPULSION ------- Flight Unit Flight Unit Flight Unit > --- UTILITY ---------- Small Storage Unit > --- WEAPON ----------- Light EM Pulse Cannon > --- INVENTORY -------- Terrain Scan Processor [Rating: 9] Favorites ----------- Power Light Ion Engine Engine Light Ion Engine Power Core Light Nuclear Core Propulsion Aluminum Leg Leg Aluminum Leg Flight Unit Flight Unit Utility Terrain Scanner Device Terrain Scanner Storage Small Storage Unit Protection Light Armor Plating Weapon Assault Rifle Energy Cannon Light EM Pulse Cannon Ballistic Gun Assault Rifle Launcher Grenade Launcher Build | -11 -10 -10 -9 -9 ------- Run | Yrd Mat Min Mat Sto Slots Evolved 2 | . . . 2 . Power . | . . . . . Propulsion 1 | . . . 1 . Utility 1 | . . . 1 . Weapon . | . . . . . Parts Attached 14 | 5 3 2 3 1 Power 2 | 1 . . 1 . Engine 1 | 1 . . . . Core 1 | . . . 1 . Reactor . | . . . . . Propulsion 5 | 2 . 2 1 . Treads . | . . . . . Leg 2 | 2 . . . . Wheel . | . . . . . Hover . | . . . . . Flight 3 | . . 2 1 . Utility 3 | . 2 . 1 . Device 1 | . 1 . . . Storage 1 | . . . 1 . Processor . | . . . . . Hackware . | . . . . . Protection 1 | . 1 . . . Artifact . | . . . . . Weapon 4 | 2 1 . . 1 Energy Gun . | . . . . . Energy Cannon 1 | . . . . 1 Ballistic Gun 2 | 2 . . . . Ballistic Cannon . | . . . . . Launcher 1 | . 1 . . . Special Weapon . | . . . . . Impact Weapon . | . . . . . Slashing Weapon . | . . . . . Piercing Weapon . | . . . . . Special Melee Weapon . | . . . . . Unidentified Prototypes . | . . . . . Parts Lost 9 | . . 7 . 2 Power 2 | . . 1 . 1 Propulsion 3 | . . 2 . 1 Utility 2 | . . 2 . . Weapon 2 | . . 2 . . Highest Loss Streak 7 | . . 7 . 2 To Critical Strikes . | . . . . . Average Backups 2 | 1 2 4 1 2 Power . | . . 1 . . Propulsion 1 | . 1 3 . . Utility . | . . . . 1 Weapon . | . . . . . Tool/Special . | . . . . . Unused Backups 2 | . 1 . . 1 Power . | . . . . . Propulsion 1 | . 1 . . . Utility 1 | . . . . 1 Weapon . | . . . . . Tool/Special . | . . . . . Average Slot Usage (%) 80 | . 96 91 45 50 Engine 9 | . 14 13 . . Core 2 | . . . 10 8 Leg 19 | . 28 25 . . Flight 9 | . . . 33 30 Device 8 | . 12 12 . . Protection 8 | . 11 12 . . Ballistic Gun 10 | . 16 13 . . Launcher 8 | . 11 13 . . Peak Build Rating 9 | 5 7 7 7 9 Average Rating 6 | 2 6 6 6 6 On Entrance 4 | . 5 7 2 7 Avg Prop Armor Cover (%) . | . . . . . Naked Turns 4 | . . 4 . . Heaviest Build 12 | 6 12 12 10 10 Greatest Support 20 | 20 20 20 12 12 Greatest Overweight (x) 2 | . . 2 . . Average Overweight (x) . | . . . . . Largest Inventory Capacity 8 | 5 5 5 8 8 Average Capacity 5 | 5 5 5 5 6 Most Carried 5 | 5 5 4 2 2 Average Carried 2 | 1 2 3 1 1 Final Capacity 8 | 5 5 5 8 5 Final Carried 4 | 1 4 2 2 2 Class Distribution -------------------- 76% | Mutant 23% | Scavenger-Mutant Dominant Class ---------------- Mutant | -10/Materials Mutant | -10/Mines Scavenger-Mutant | -9/Materials Mutant | -9/Storage Resources | -11 -10 -10 -9 -9 ----------- Run | Yrd Mat Min Mat Sto Matter Collected 364 | 270 65 10 . 19 Remotely . | . . . . . Salvage Created 286 | 49 157 17 . 63 Parts 21 | 3 14 . . 4 Haulers Intercepted 1 | . 1 . . . Recyclers Shooed . | . . . . . Parts Field Recycled . | . . . . . Retrieved Matter . | . . . . . Parts Self-Destructed . | . . . . . Prevented . | . . . . . Parts Restored . | . . . . . Kills | -11 -10 -10 -9 -9 ------- Run | Yrd Mat Min Mat Sto Combat Hostiles Destroyed 9 | 1 5 2 . 1 Guns 2 | 1 1 . . . AOE 7 | . 4 2 . 1 Classes Destroyed 7 | 1 3 1 . 2 Worker 2 | . 2 . . . Hauler 1 | . 1 . . . Watcher 1 | . . . . 1 Swarmer 3 | . 3 . . . Grunt 3 | 1 2 . . . Sentry 1 | . . . . 1 Assembled 2 | . . 2 . . Best Kill Streak 7 | 1 7 2 . 2 Combat Bots Only 5 | 1 5 2 . 1 Max Kills in Single Turn 4 | 1 4 2 . 1 Gunslinging . | . . . . . Exploded 3 | . 3 2 . 1 Melee . | . . . . . Uniques/NPCs Destroyed . | . . . . . Combat | -11 -10 -10 -9 -9 -------- Run | Yrd Mat Min Mat Sto Hostile Shots Fired 70 | 6 11 31 20 2 Missed 27 | 3 4 6 13 1 Hits 43 | 3 7 25 7 1 Melee 6 | . . 6 . . Projectile 37 | 3 7 19 7 1 AOE 1 | . . 1 . . Critical Strikes 1 | . . 1 . . Damage Taken 734 | 33 79 506 69 47 Core 121 | . 11 104 6 . Absorbed by Shields . | . . . . . Core Remaining (%) 77 | 100 . 54 . . Volleys Fired 19 | 5 7 3 . 4 Largest 2 | 2 2 1 . 1 Hottest 56 | 40 40 30 . 56 Shots Fired 27 | 10 10 3 . 4 Gun 18 | 10 7 1 . . Cannon 4 | . . . . 4 Launcher 5 | . 3 2 . . Special . | . . . . . Kinetic 18 | 10 7 1 . . Thermal . | . . . . . Explosive 5 | . 3 2 . . Electromagnetic 4 | . . . . 4 Robot Hit Streak 15 | 7 15 1 . 3 Robot Miss Streak 2 | 2 . 1 . 1 Penetration Max . | . . . . . Secondary Targets . | . . . . . Shots Hit Robots 19 | 7 8 1 . 3 Core Hits 22 | 2 13 4 . 3 Critical Kills . | . . . . . Critical Parts Destroyed . | . . . . . Critical Strikes . | . . . . . Melee Attacks . | . . . . . Impact . | . . . . . Slashing . | . . . . . Piercing . | . . . . . Sneak Attacks . | . . . . . Combat Hostiles . | . . . . . Follow-up Attacks . | . . . . . Damage Inflicted 741 | 72 373 161 . 135 Guns 147 | 72 64 11 . . Cannons 76 | . . . . 76 Explosions 518 | . 309 150 . 59 Melee . | . . . . . Ramming . | . . . . . Kinetic 147 | 72 64 11 . . Thermal 39 | . . . . 39 Explosive 479 | . 309 150 . 20 Electromagnetic 76 | . . . . 76 Impact . | . . . . . Slashing . | . . . . . Piercing . | . . . . . Highest Corruption 4 | . . 4 . . Average Corruption 4 | . . 4 . . Corruption Purged . | . . . . . Corruption Blocked . | . . . . . Effects 1 | . . 1 . . Message Errors 1 | . . 1 . . Overload Shots . | . . . . . Overflow Damage 27 | . 2 . . 25 Projectiles . | . . . . . Explosions 27 | . 2 . . 25 Melee . | . . . . . Knockbacks . | . . . . . Impact . | . . . . . Kinetic . | . . . . . Secondary . | . . . . . Self-Inflicted Damage 33 | . . . . 33 Shots 1 | . . . . 1 Rammed . | . . . . . Targets Rammed . | . . . . . Kicked . | . . . . . Crushed . | . . . . . Highest Temperature 43 | 6 4 43 . 39 Average Temperature 18 | 6 3 28 . 20 Received Heat Transfer 135 | 18 39 60 9 9 Siege Activations . | . . . . . Martial Activations . | . . . . . Shielding Activations . | . . . . . Robots Disrupted . | . . . . . Combat Hostiles . | . . . . . Robots Corrupted . | . . . . . Combat Hostiles . | . . . . . Parts Fried 1 | . . . . 1 Impact Corruptions . | . . . . . Robots Melted . | . . . . . Combat Hostiles . | . . . . . Parts Melted . | . . . . . Heat Transferred 50 | . . . . 50 Parts Sabotaged . | . . . . . Parts Stolen . | . . . . . Parts Stripped . | . . . . . Power Chain Reactions 1 | . . . . 1 Alert | -11 -10 -10 -9 -9 ------- Run | Yrd Mat Min Mat Sto Maximum Alert Level . | . . . . . Low Security (%) 100 | 100 100 100 100 100 Level 1 . | . . . . . Level 2 . | . . . . . Level 3 . | . . . . . Level 4 . | . . . . . Level 5 . | . . . . . High Security . | . . . . . Max Security . | . . . . . Peak Influence 153 | 10 153 47 40 101 Initial 47 | . 6 47 . 10 Average 19 | 1 25 16 14 36 Influence Increases 410 | 20 175 9 75 131 Destroy 0b10 Robot/C 140 | 20 100 . . 20 Destroy 0b10 Robot/NC 20 | . 15 . . 5 Destroy Leader 34 | . 22 . . 12 Successful Hack 3 | . . . . 3 Disable Machine 30 | . . . . 30 Destroy Structure 48 | . 23 9 . 16 Partial Spotted 120 | . . . 75 45 Lose Combat Pursuer 15 | . 15 . . . Influence Decreases 309 | 10 62 132 50 55 Entered New Map 95 | . 4 76 . 15 Time Decay 194 | 10 58 56 50 20 Lost Part 20 | . . . . 20 Squads Dispatched 1 | . 1 . . . Investigation 1 | . 1 . . . Extermination . | . . . . . Reinforcement . | . . . . . Assault . | . . . . . Garrison . | . . . . . Intercept . | . . . . . Searches Triggered . | . . . . . Construction Impeded . | . . . . . Haulers Reinforced . | . . . . . Active Scanning Responses . | . . . . . Cargo Convoy Interrupts . | . . . . . Stealth | -11 -10 -10 -9 -9 --------- Run | Yrd Mat Min Mat Sto Distress Signals . | . . . . . Communications Jammed . | . . . . . Distress Signals . | . . . . . Times Spotted 35 | 1 8 18 6 2 Peak Tracking Total 10 | 1 5 10 7 1 Tactical Retreats 2 | . 1 1 . . Traps | -11 -10 -10 -9 -9 ------- Run | Yrd Mat Min Mat Sto Traps Triggered 1 | . 1 . . . Indirectly . | . . . . . Trap Hack Attempts . | . . . . . Triggered . | . . . . . Disarmed . | . . . . . Reprogrammed . | . . . . . Reused . | . . . . . Traps Extracted . | . . . . . Installed . | . . . . . Triggered . | . . . . . Machines | -11 -10 -10 -9 -9 ---------- Run | Yrd Mat Min Mat Sto Machines Disabled 2 | . . . . 2 Max in Single Turn 2 | . . . . 2 Machines Repaired . | . . . . . Machines Dismantled . | . . . . . Machines Sabotaged . | . . . . . Overloaded Fab Kills . | . . . . . Hacking | -11 -10 -10 -9 -9 --------- Run | Yrd Mat Min Mat Sto Machines Accessed 3 | . 1 . 1 1 Terminals 3 | . 1 . 1 1 Fabricators . | . . . . . Repair Stations . | . . . . . Recycling Units . | . . . . . Scanalyzers . | . . . . . Garrison Access . | . . . . . Total Hacks 3 | . 1 . 1 1 Successful 3 | . 1 . 1 1 Failed . | . . . . . Catastrophic . | . . . . . Database Lockouts . | . . . . . Manual . | . . . . . Terminals 3 | . 1 . 1 1 Fabricators . | . . . . . Repair Stations . | . . . . . Recycling Units . | . . . . . Scanalyzers . | . . . . . Garrison Access . | . . . . . Terminal Hacks 3 | . 1 . 1 1 Record 2 | . 1 . 1 . Maintenance Status 1 | . . . . 1 Fabricator Hacks . | . . . . . Repair Station Hacks . | . . . . . Recycling Unit Hacks . | . . . . . Scanalyzer . | . . . . . Garrison Access Hacks . | . . . . . Unauthorized Hacks . | . . . . . Terminals . | . . . . . Fabricators . | . . . . . Repair Stations . | . . . . . Recycling Units . | . . . . . Scanalyzers . | . . . . . Garrison Access . | . . . . . Data Cores Recovered . | . . . . . Used . | . . . . . Hacking Detections 1 | . . . 1 . Full Trace Events . | . . . . . Feedback Events . | . . . . . Feedback Blocked . | . . . . . Robot Schematics Acquired . | . . . . . Robots Built . | . . . . . Authchips . | . . . . . Time . | . . . . . Total Robot Build Rating . | . . . . . Part Schematics Acquired . | . . . . . Parts Built . | . . . . . Authchips . | . . . . . Time . | . . . . . Total Part Build Rating . | . . . . . Part Studies Acquired . | . . . . . Parts Repaired . | . . . . . Time . | . . . . . Parts Recycled . | . . . . . Recycled Matter . | . . . . . Retrieved Matter . | . . . . . Retrieved Components . | . . . . . Parts Scanalyzed . | . . . . . Part Schematics Acquired . | . . . . . Parts Damaged . | . . . . . Bothacking | -11 -10 -10 -9 -9 ------------ Run | Yrd Mat Min Mat Sto Used RIF Installer . | . . . . . Robots Hacked . | . . . . . Non-combat . | . . . . . Combat . | . . . . . Robot Hacks Applied . | . . . . . Relay Couplers Released . | . . . . . Fabnet Peak Effective % . | . . . . . Robots Rewired . | . . . . . Allies Hacked . | . . . . . Hacks Repelled . | . . . . . Allies | -11 -10 -10 -9 -9 -------- Run | Yrd Mat Min Mat Sto Total Allies . | . . . . . Largest Group . | . . . . . Highest-Rated Group . | . . . . . Highest-Rated Ally . | . . . . . Total Orders . | . . . . . Ally Attacks . | . . . . . Total Damage . | . . . . . Kills . | . . . . . Allies Corrupted . | . . . . . Allies Melted . | . . . . . Intel | -11 -10 -10 -9 -9 ------- Run | Yrd Mat Min Mat Sto Active Infowar (turns) 422 | . 283 139 . . Terrain 422 | . 283 139 . . Robot Analysis Total . | . . . . . Derelict Logs Recovered 1 | . . 1 . . Drone Launches . | . . . . . Drone Recoveries . | . . . . . Exploration | -11 -10 -10 -9 -9 ------------- Run | Yrd Mat Min Mat Sto Turns Passed 745 | 68 322 167 142 46 Spaces Moved 689 | 68 172 144 213 92 Core 68 | 54 . 14 . . Treads . | . . . . . Legs 305 | 14 172 119 . . Wheels . | . . . . . Hover . | . . . . . Flight 316 | . . 11 213 92 Fastest Speed 34 | 50 120 37 34 34 Average Speed 74 | 64 120 110 34 35 Slowest Speed 150 | 120 120 150 34 37 Overloaded Moves . | . . . . . Propulsion Burnouts . | . . . . . Robots Hopped . | . . . . . Potential Cave-ins . | . . . . . Cave-ins Triggered . | . . . . . Exploration Rate (%) 30 | 7 39 58 23 26 Regions Visited 4 Branch Regions 2 Pre-discovered Areas 1 | . . 1 . . Known Exits Taken . | . . . . . Unknown Exits Taken 4 | 1 1 1 1 . Scrap Searched 1 | . . 1 . . Spaces Dug . | . . . . . Terrain Destroyed 56 | . 23 16 . 17 Melee . | . . . . . Projectile . | . . . . . AOE 56 | . 23 16 . 17 Terrain Rammed . | . . . . . Walls Destroyed . | . . . . . Machines Disabled . | . . . . . Actions | -11 -10 -10 -9 -9 --------- Run | Yrd Mat Min Mat Sto Total 891 | 83 277 148 281 102 Wait 157 | . 89 . 64 4 Move 685 | 67 171 143 212 92 Hop . | . . . . . Pick Up 13 | 6 5 . 2 . Fast Attach 3 | . 2 . 1 . Attach 10 | 5 . 2 2 1 Detach 1 | . . . . 1 Swap 1 | . 1 . . . Drop 2 | . 2 . . . Fire 19 | 5 7 3 . 4 Melee . | . . . . . Ram . | . . . . . Kick . | . . . . . Crush . | . . . . . Escape Stasis . | . . . . . Rewire . | . . . . . Trap . | . . . . . Miscellaneous . | . . . . . Route ------- -11/Scrapyard -10/Materials -10/Mines -9/Materials (discovered 2 exits: [*Min] / *Sto) -9/Storage History --------- Turn | Location | Event 2 | -11/Scrapyard | Met Revision 17 43 | -11/Scrapyard | Discovered new exit (range 8) 69 | -11/Scrapyard | Entered Materials 306 | -10/Materials | Build established: Mutant 331 | -10/Materials | Discovered new exit (range 16) 391 | -10/Materials | Entered Mines 469 | -10/Mines | Assembled infested the area 486 | -10/Mines | Learned location of Storage (-9) 556 | -10/Mines | Discovered new exit (range 7) 558 | -10/Mines | Entered Materials 558 | -9/Materials | Evolved 2 slots: Propulsion x1, Utility x1 574 | -9/Materials | Discovered new exit (range 13) 579 | -9/Materials | Lost 7 parts (1p2n2u2w) 685 | -9/Materials | Discovered new exit (range 5) 700 | -9/Materials | Entered Storage 746 | -9/Storage | Self-destructed Last Messages --------------- [Achievement: Resistances Are Futile] Flight Unit destroyed. Destroyed Flight Unit. Lgt. Nuclear Core destroyed. [Achievement: Overwhelming] Destroyed Lgt. Nuclear Core. K-01 Serf collects debris. U-05 Engineer builds a Wall. Connecting with Terminal... >>Enumerate(Maintenance) Found 17 registered maintenance bots. 8 Workers 5 Builders 2 Tunnelers 2 Recyclers Downloaded coordinate data. K-01 Serf collects debris. U-05 Engineer builds a Wall. K-01 Serf collects debris. U-05 Engineer builds a Wall. Map ----- +----------------------------------------------------+ | | | | | | | | | | | | | | | ????????????????????????????????????????????? | | ????????????????????????????????????????????? | | ????????????????????????????????????????????? | | ????????????????????????????????????????????? | | #######################?????????????????????? | | #?####????????????????? | | #?"""" ???????????????? | | # """" ???????????????? | | # """" ??????????????? | | # = + """" "??????????????? | | ## = ###### # # #??????????????? | | ## # """ # # ! [ #?????????????? | | # # "Y" %[ ##############????????? | | # # ! ## [ !! #????????? | | # # [[ ## +????????? | | + + [[ ### ## =a #????????? | | # # ## ## +????????? | | # # ### + #????????? | | # # ###?# # @ #????????? | | + ##"T"######???# # ]#????????? | | ###+###"""#????????# #############????????? | | ??????#####????????# #????????????????????? | | ???????????????????# #????????????????????? | | ???????????????????# #????????????????????? | | ???????????????????+ #????????????????????? | | ???????????????????# #????????????????????? | | ???????????????????# #????????????????????? | | ???????????????????# #????????????????????? | | ???????????????????# #????????????????????? | | ???????????????????# ?????????????????????? | | ???????????????????# ?????????????????????? | | ???????????????????# ?????????????????????? | | ???????????????????? ?????????????????????? | | ????????????????????????????????????????????? | | ????????????????????????????????????????????? | | ????????????????????????????????????????????? | | ????????????????????????????????????????????? | | ????????????????????????????????????????????? | | ????????????????????????????????????????????? | | ????????????????????????????????????????????? | | ????????????????????????????????????????????? | | ????????????????????????????????????????????? | | ????????????????????????????????????????????? | +----------------------------------------------------+ Best States ------------- Heat Dissipation 28 Energy Generation 14 Energy Capacity 160 Matter Stores 300 Matter Capacity 300 Sight Range 16 Terrain Scan Range 14 Terrain Scan Density 10 Armor Coverage 150 Evasion (%) 63 Item Schematics ----------------- None Robot Schematics ------------------ None Fabricated ------------ Nothing Repaired ---------- Nothing Studied --------- None Alien Tech Used ----------------- None Achievements -------------- Overwhelming Resistances Are Futile Challenges ------------ None Game ------ Seed AnalysisHackingWand Manual? 0 Play Time 00:16:44 Cumulative 2.3 hours Start 2026.08.15 @ 19:06:35 End 2026.08.16 @ 11:16:27 Sessions 4 Manual Loads 0 Difficulty Rogue Special Mode None Game No. 3 Rogue 3 Adventurer 0 Explorer 0 Win Type - Total 0 Types 0/0/0/0/0/0/0/0/0/0 Lore% 1 Gallery% 4 Achievement% 7 Wizard Run 0 Options --------- Layout 0 ASCII 0 Keyboard 0 Movement Numpad Keybinds 0 Fullscreen 2 Font 24/Proggy Map View 76x50 Zoom Use 0% Tactical HUD 0 Map Filters NONE Filters NONE Steam 1 RUN: e1ea1f8e-9a31-48f9-81fb-24b63b26932f